bitfinex/quotes_ETHUSD_20220201
["timestamp","ask_amount","ask_price","bid_price","bid_amount"]
[1643735604731,1.51158745,2790.0,2789.7,0.76894394]
[1643735605332,1.51158745,2790.1,2789.8,2.11521341]
[1643735605603,0.84956469,2790.8,2789.8,2.11521341]
[1643735605794,1.51131309,2790.7,2789.8,3.11521341]
[1643735605992,0.1791,2790.6,2789.8,2.11521341]
[1643735606194,0.1791,2790.6,2789.9,1.40396732]
[1643735606195,0.41623584,2790.4,2789.9,1.40396732]
[1643735606392,0.89395292,2791.2,2790.0,2.29697629]
[1643735606393,1.51131309,2790.3,2790.0,2.29697629]
[1643735606593,0.1792,2790.9,2790.0,2.29697629]
[1643735606791,1.51117615,2790.8,2790.0,4.08901629]
[1643735606995,0.1791,2790.7,2790.0,4.08901629]
[1643735607192,0.67046469,2791.0,2790.0,4.08901629]
[1643735607193,1.51117615,2790.6,2790.1,1.0]
[1643735607398,0.1791,2790.9,2790.1,1.0]
[1643735607399,0.32847233,2790.8,2790.5,0.78655656]
[1643735607594,1.51111657,2790.7,2790.5,1.68253656]
[1643735607799,1.51111657,2790.6,2790.5,8.68253656]
[1643735608195,1.51111657,2791.2,2790.5,9.38253656]
[1643735608498,1.69021657,2791.1,2790.5,0.89598]
[1643735608697,1.51111657,2791.0,2790.5,0.89598]
[1643735609095,1.51111657,2791.0,2790.4,1.0]
[1643735609096,0.90467099,2790.5,2790.4,0.28417893]
[1643735609341,0.90467099,2790.5,2789.8,0.1792]
[1643735609342,0.01740478,2789.9,2789.7,3.72455019]
[1643735609647,0.01740478,2789.9,2789.8,0.60811]
[1643735609846,0.29657099,2790.0,2789.9,0.01740478]
[1643735610147,1.80786319,2790.0,2789.9,0.01740478]
[1643735613187,4.24793347,2790.0,2789.9,0.01740478]
[1643735613687,4.42704347,2790.0,2789.9,0.01740478]
[1643735613886,5.10165577,2790.0,2789.9,0.01740478]
[1643735614085,2.84078549,2790.0,2789.9,0.01740478]
[1643735614687,2.16617319,2790.0,2789.9,0.01740478]
[1643735614986,2.66167549,2790.0,2789.9,0.01740478]
[1643735615187,1.98706319,2790.0,2789.9,0.01740478]
[1643735615586,2.16617319,2790.0,2789.9,0.01740478]
[1643735616086,2.84078549,2790.0,2789.9,0.01740478]
[1643735616286,1.98706319,2790.0,2789.9,0.01740478]
[1643735616744,2.16617319,2790.0,2789.9,0.01740478]
[1643735617149,2.84078549,2790.0,2789.9,0.01740478]
[1643735617749,2.66167549,2790.0,2789.9,0.01740478]
[1643735617950,1.98706319,2790.0,2789.9,0.01740478]
[1643735619456,1.80786319,2790.0,2789.9,0.01740478]
[1643735626741,1.98706319,2790.0,2789.9,0.01740478]
[1643735627747,1.98706319,2790.0,2789.4,0.1792]
[1643735627748,2.17417954,2790.0,2789.4,0.1792]
[1643735628000,7.5,2789.7,2789.4,0.1792]
[1643735628198,1.6904922,2789.6,2789.4,0.1792]
[1643735628399,1.5112922,2789.5,2789.4,0.1792]
[1643735628698,1.6904922,2789.5,2789.4,0.1792]
[1643735628901,2.1065337,2789.5,2789.4,0.1792]
[1643735629099,0.34065234,2788.9,2788.7,0.92126967]
[1643735629299,0.34065234,2788.9,2788.3,0.1792]
[1643735629499,0.34065234,2788.9,2788.2,1.25492]
[1643735629700,0.1792,2789.5,2788.2,1.07572]
[1643735629899,1.51169882,2789.4,2788.2,1.07572]
[1643735630103,0.1792,2789.3,2788.2,1.67572]
[1643735630304,1.51169882,2789.2,2788.4,0.89651]
[1643735630503,0.1792,2789.5,2788.5,0.94866083]
[1643735630700,1.51166246,2789.4,2788.5,0.94866083]
[1643735630902,0.43989926,2789.0,2788.5,1.27647864]
[1643735631302,0.43989926,2789.0,2788.5,0.94866083]
[1643735632332,0.43989926,2789.0,2788.5,1.30298256]
[1643735632533,0.43989926,2789.0,2788.5,0.94866083]
[1643735632734,0.1792,2789.5,2788.5,0.94866083]
[1643735632936,1.51160155,2789.4,2788.5,0.94866083]
[1643735633834,0.35234867,2789.2,2788.7,0.32073598]
[1643735634235,0.35234867,2789.2,2788.7,0.8965]
[1643735635337,0.35234867,2789.2,2788.5,0.94866083]
[1643735635338,1.51170474,2789.1,2788.5,0.94866083]
[1643735635600,0.35234867,2789.2,2788.5,1.37766083]
[1643735636197,0.35234867,2789.2,2788.5,0.429]
[1643735636397,1.5117493,2789.1,2788.5,0.429]
[1643735636801,1.5117493,2789.1,2788.3,0.1792]
[1643735637199,3.71892411,2789.1,2788.3,0.1792]
[1643735637400,1.9409493,2789.0,2788.3,0.1792]
[1643735637799,0.43164472,2788.4,2788.3,0.1792]
[1643735637998,1.94364516,2788.4,2788.3,0.1792]
[1643735638399,0.43164472,2788.4,2788.3,0.1792]
[1643735638601,0.43164472,2788.4,2788.3,5.9792]
[1643735638799,0.43164472,2788.4,2788.3,0.1792]
[1643735639248,0.4292,2789.0,2787.9,2.14677663]
[1643735639455,1.51192327,2788.9,2787.9,2.14677663]
[1643735639653,1.51192327,2788.9,2787.9,3.14677663]
[1643735640255,1.51192327,2788.9,2788.4,0.72603288]
[1643735640456,1.51192327,2788.9,2788.6,0.89637]
[1643735640659,0.25,2789.0,2788.6,0.89637]
[1643735640660,0.25,2789.0,2788.7,2.56274274]
[1643735640860,0.25,2789.0,2788.7,0.429]
[1643735641057,0.25,2789.4,2788.7,0.429]
[1643735641256,1.51173468,2789.3,2788.7,0.429]
[1643735641458,0.4115478,2789.1,2788.7,2.42115972]
[1643735641759,1.51174012,2789.0,2788.7,0.429]
[1643735642158,1.51174012,2789.0,2788.7,0.8521239]
[1643735642362,1.51174012,2789.0,2788.9,3.9887298]
[1643735642758,1.51174012,2789.3,2788.9,3.9887298]
[1643735642992,1.51174012,2789.3,2789.0,2.3930292]
[1643735643191,0.1792,2789.8,2789.0,2.3930292]
[1643735643392,1.51153712,2789.7,2789.0,2.3930292]
[1643735643592,1.51153712,2789.6,2789.0,0.429]
[1643735643793,0.39294106,2789.3,2789.0,0.429]
[1643735643993,1.51153712,2789.2,2789.0,0.429]
[1643735644393,1.51153712,2789.2,2789.0,2.3887259]
[1643735644594,1.51153712,2789.1,2789.0,0.429]
[1643735644796,0.1792,2789.8,2789.0,2.48199572]
[1643735645098,1.5114499,2789.7,2789.0,2.48199572]
[1643735645496,1.5114499,2789.7,2789.0,0.429]
[1643735645897,2.3652622,2789.8,2789.0,0.429]
[1643735646096,1.5114499,2789.7,2789.0,0.429]
[1643735646297,0.43618564,2789.5,2789.0,0.429]
[1643735646500,1.5114499,2789.4,2789.0,0.429]
[1643735648560,1.5114499,2789.4,2789.0,0.85918702]
[1643735648758,1.5114499,2789.4,2789.0,0.429]
[1643735648959,1.5209737,2789.4,2788.9,0.14353]
[1643735649156,1.5209737,2789.4,2788.5,0.429]
[1643735649157,2.1860622,2789.3,2788.5,0.429]
[1643735649356,2.6152622,2789.3,2788.5,0.429]
[1643735649556,1.5114499,2789.2,2788.5,0.429]
[1643735649756,0.42893288,2788.8,2788.5,0.429]
[1643735650360,0.25,2789.2,2788.5,0.429]
[1643735650598,0.1792,2789.4,2788.5,0.429]
[1643735650599,1.76169885,2789.1,2788.5,0.429]
[1643735650801,1.51169885,2789.0,2788.5,1.429]
[1643735651001,1.51169885,2788.9,2788.5,1.429]
[1643735651204,1.51169885,2788.8,2788.5,0.429]
[1643735651400,1.51169885,2788.7,2788.3,1.0]
[1643735651600,0.1792,2789.2,2788.1,1.1792]
[1643735651601,1.51169885,2789.1,2788.1,1.1792]
[1643735651801,0.32724367,2788.6,2788.1,0.1792]
[1643735652004,1.51169885,2788.5,2788.1,0.1792]
[1643735653403,1.69089885,2788.5,2788.1,0.1792]
[1643735653602,1.51169885,2788.4,2788.1,0.1792]
[1643735653806,1.51169885,2788.4,2787.9,0.79299469]
[1643735653807,1.51169885,2788.4,2787.8,7.47]
[1643735654434,1.51169885,2788.4,2787.8,7.37]
[1643735654835,1.51169885,2788.4,2787.9,0.86826464]
[1643735655135,0.1792,2788.3,2787.9,0.86826464]
[1643735655435,0.33419386,2788.1,2787.9,0.86826464]
[1643735655634,0.33419386,2788.1,2787.7,0.90779913]
[1643735655837,1.51210686,2788.0,2787.7,0.90779913]
[1643735656036,0.89684,2788.6,2787.7,0.90779913]
[1643735656236,1.69124998,2788.5,2787.7,0.90779913]
[1643735656441,1.51204998,2788.4,2787.7,0.90779913]
[1643735656636,0.1792,2788.3,2787.8,0.89968708]
[1643735656843,1.51204998,2788.2,2787.8,0.89968708]
[1643735657240,0.1792,2788.4,2787.8,0.89968708]
[1643735657443,1.51202468,2788.3,2787.8,0.89968708]
[1643735657985,1.51202468,2788.3,2787.7,0.52601942]
[1643735658892,0.35053549,2787.8,2787.7,0.52601942]
[1643735659293,2.75987061,2787.8,2787.7,0.52601942]
[1643735659692,1.86277061,2787.8,2787.7,0.52601942]
[1643735661293,0.35053549,2787.8,2787.7,0.52601942]
[1643735661937,1.86280783,2787.8,2787.7,0.52601942]
[1643735662338,0.35053549,2787.8,2787.7,0.52601942]
[1643735662538,0.1792,2788.0,2787.7,0.52601942]
[1643735662747,0.1792,2788.0,2787.8,1.99403665]
[1643735662945,0.1792,2788.8,2787.7,0.95501942]
[1643735663142,1.5121034,2788.7,2787.7,0.95501942]
[1643735663340,0.1792,2788.6,2787.7,0.95501942]
[1643735663542,1.5121034,2788.5,2787.7,0.95501942]
[1643735663743,0.32828762,2788.3,2787.8,0.89671]
[1643735664143,0.32828762,2788.3,2787.7,0.52601942]
[1643735664347,1.69134869,2788.2,2787.7,0.52601942]
[1643735664545,1.51214869,2788.1,2787.7,0.52601942]
[1643735664944,0.44931762,2787.8,2787.7,0.50153827]
[1643735666810,0.1792,2788.1,2787.7,0.50153827]
[1643735667312,1.51217146,2788.0,2787.7,0.50153827]
[1643735667516,0.1792,2788.4,2787.7,0.50153827]
[1643735667712,1.51217283,2788.3,2787.7,0.50153827]
[1643735667913,0.33709159,2787.8,2787.7,0.50153827]
[1643735669015,0.1792,2788.1,2787.7,0.50153827]
[1643735669238,1.51218049,2788.0,2787.7,0.50153827]
[1643735669646,0.8969,2788.2,2787.7,0.50153827]
[1643735669844,1.51218624,2788.1,2787.7,0.50153827]
[1643735670248,0.32666482,2788.0,2787.7,0.50153827]
[1643735671052,1.51217747,2787.9,2787.7,0.50153827]
[1643735671245,0.32666482,2788.0,2787.7,0.50153827]
[1643735671451,0.1792,2788.3,2787.8,1.98828663]
[1643735671651,0.13819997,2789.0,2787.8,2.41728663]
[1643735671652,0.1792,2788.6,2787.8,2.41728663]
[1643735671846,1.511985,2788.5,2787.8,2.41728663]
[1643735672047,0.1792,2788.9,2788.3,0.75826141]
[1643735672254,1.5118946,2788.8,2788.3,0.75826141]
[1643735672448,0.41091078,2788.7,2788.3,0.75826141]
[1643735672649,1.5118946,2788.6,2788.3,2.78125153]
[1643735672849,0.1792,2789.1,2788.4,0.429]
[1643735673091,1.5117437,2789.0,2788.8,0.67104581]
[1643735673292,0.13819997,2789.2,2788.9,6.3]
[1643735673495,0.1792,2789.8,2789.1,0.17911]
[1643735673695,0.29657099,2790.0,2789.4,0.42810702]
[1643735673696,1.51139434,2789.7,2789.4,0.42810702]
[1643735673895,1.51139434,2789.6,2789.5,2.30931]
[1643735674296,1.51139434,2789.8,2789.5,3.30931]
[1643735674494,1.51139434,2789.7,2789.6,3.32290713]
[1643735674694,1.51139434,2789.7,2789.6,3.83990713]
[1643735674896,0.29657099,2790.0,2789.6,4.83990713]
[1643735674897,1.51139434,2789.9,2789.6,4.83990713]
[1643735675098,1.51139434,2789.8,2789.6,4.83990713]
[1643735675394,0.29657099,2790.0,2789.7,3.5]
[1643735675595,1.51129748,2789.9,2789.8,7.50462919]
[1643735675794,1.51129748,2789.9,2789.8,2.41308]
[1643735675994,1.51129748,2789.9,2789.8,1.517]
[1643735676196,1.51129748,2789.9,2789.8,0.517]
[1643735680718,0.1,2789.8,2789.2,0.65519997]
[1643735680915,0.1,2789.8,2788.9,0.517]
[1643735680916,1.51129748,2789.7,2788.9,0.517]
[1643735681113,0.43539844,2789.5,2789.0,0.35344617]
[1643735681313,1.51129748,2789.4,2789.0,0.35344617]
[1643735681520,1.51129748,2789.4,2789.1,1.25567834]
[1643735682619,1.51129748,2789.4,2789.1,2.25567834]
[1643735682815,1.51129748,2789.4,2789.1,0.517]
[1643735683017,2.40784748,2789.4,2789.1,0.517]
[1643735683222,1.69049748,2789.3,2789.1,0.517]
[1643735683415,1.51129748,2789.2,2789.1,0.517]
[1643735684017,1.51129748,2789.2,2789.1,2.717]
[1643735684254,0.1792,2789.4,2789.1,2.717]
[1643735684255,1.51129748,2789.3,2789.1,2.717]
[1643735684456,1.51129748,2789.3,2789.1,0.517]
[1643735684659,1.51129748,2789.3,2789.1,1.41345]
[1643735684857,0.1792,2789.4,2789.1,1.41345]
[1643735685060,0.35,2789.8,2789.1,1.41345]
[1643735685061,0.1,2789.8,2789.1,1.41345]
[1643735685259,1.51143395,2789.7,2789.1,1.71345]
[1643735685455,1.51143395,2789.7,2789.1,3.82744462]
[1643735685856,1.51143395,2789.7,2789.3,0.40364646]
[1643735686157,1.51143395,2789.7,2789.4,1.27168996]
[1643735686358,1.51143395,2789.7,2789.5,0.89628]
[1643735686557,1.51143395,2789.7,2789.6,5.667]
[1643735686757,1.51143395,2789.7,2789.6,1.517]
[1643735687160,1.51143395,2789.7,2789.6,0.517]
[1643735687358,1.51136062,2789.7,2789.6,0.517]
[1643735687559,0.1,2789.8,2789.6,0.517]
[1643735687764,1.51136353,2789.7,2789.6,0.517]
[1643735687993,1.51136353,2789.7,2789.6,5.667]
[1643735688203,1.51136188,2789.7,2789.6,6.79504864]
[1643735688394,0.1,2789.8,2789.6,7.79504864]
[1643735688800,0.1,2789.8,2789.7,4.85]
[1643735689000,0.1,2789.8,2789.7,5.367]
[1643735689199,1.61133088,2789.8,2789.7,5.367]
[1643735690707,0.1,2789.8,2789.7,5.367]
[1643735690905,0.1,2789.8,2789.7,10.23485294]
[1643735691103,0.1,2790.2,2789.9,4.45]
[1643735691305,0.1,2790.2,2790.0,7.977]
[1643735691507,0.1,2790.2,2790.1,5.93268644]
[1643735691744,1.80934198,2790.7,2790.3,1.13157532]
[1643735691952,0.90467099,2791.0,2790.6,4.4]
[1643735692146,0.90467099,2791.0,2790.7,5.767]
[1643735692347,0.90467099,2791.0,2790.7,13.40611]
[1643735692646,0.90467099,2791.0,2790.7,13.70611]
[1643735692854,1.26943236,2791.0,2790.8,2.65]
[1643735693049,1.26943236,2791.0,2790.8,3.167]
[1643735693248,1.26943236,2791.0,2790.8,1.3]
[1643735693454,0.90467099,2791.0,2790.8,1.3]
[1643735693651,0.90467099,2791.0,2790.8,0.3]
[1643735693853,0.90467099,2791.0,2790.7,0.17911]
[1643735694052,0.90467099,2791.0,2790.8,3.43]
[1643735694250,0.90467099,2791.0,2790.8,3.60911]
[1643735694953,0.90467099,2791.0,2790.8,0.43]
[1643735695600,3.32013538,2790.9,2790.8,0.43]
[1643735696408,3.32013538,2790.9,2790.8,0.60911]
[1643735696710,1.80934198,2790.9,2790.8,0.43]
[1643735696909,1.80934198,2790.9,2790.8,2.73]
[1643735697106,1.80934198,2790.9,2790.8,0.43]
[1643735697306,1.80934198,2790.9,2790.8,1.43]
[1643735697507,1.80934198,2790.9,2790.8,0.43]
[1643735697909,1.80934198,2790.9,2790.8,3.43]
[1643735698106,1.80934198,2790.9,2790.8,4.43]
[1643735698307,1.80934198,2790.9,2790.8,4.90911]
[1643735698609,1.80934198,2790.9,2790.8,4.43]
[1643735698809,1.80934198,2790.9,2790.8,6.78]
[1643735699245,0.17403784,2791.0,2790.9,6.7]
[1643735699452,0.17403784,2791.0,2790.9,2.47517842]
[1643735699750,0.17403784,2791.0,2790.9,3.77517842]
[1643735699951,0.17403784,2791.0,2790.9,1.73]
[1643735700248,0.17403784,2791.0,2790.9,1.90911]
[1643735701151,1.77781706,2791.1,2790.9,0.33]
[1643735701351,1.77781706,2791.1,2790.9,1.22571]
[1643735701950,1.77781706,2791.1,2791.0,2.37911]
[1643735702154,1.77781706,2791.1,2791.0,2.80911]
[1643735702350,1.77781706,2791.1,2791.0,3.40911]
[1643735702554,1.77781706,2791.1,2791.0,4.40911]
[1643735702753,1.77781706,2791.1,2791.0,6.95889336]
[1643735703010,1.80934198,2791.5,2791.2,27.6]
[1643735703011,0.58616158,2791.4,2791.2,27.6]
[1643735703207,1.80934198,2791.5,2791.4,6.15]
[1643735703407,1.80934198,2791.5,2791.4,8.79983122]
[1643735703608,1.80934198,2791.5,2791.4,1.60911]
[1643735704007,1.80934198,2791.5,2791.4,0.43]
[1643735704206,1.80934198,2791.5,2791.3,1.0]
[1643735704605,1.80934198,2791.5,2791.2,2.68623]
[1643735704805,1.98844198,2791.5,2791.1,0.89543]
[1643735705608,0.43295482,2791.2,2791.1,0.89543]
[1643735706016,1.80934198,2791.5,2791.1,0.89543]
[1643735706214,1.80934198,2791.5,2791.1,1.62543]
[1643735706412,1.80934198,2791.5,2791.1,1.32543]
[1643735706613,1.73186582,2791.5,2791.1,1.32543]
[1643735707076,0.41698447,2791.2,2791.1,1.32543]
[1643735707274,1.73186582,2791.5,2791.1,1.50454]
[1643735707474,1.73186582,2791.5,2791.1,1.32543]
[1643735708480,1.73186582,2791.5,2791.2,5.1403667]
[1643735708679,9.15e-05,2791.5,2791.3,0.43]
[1643735708883,1.18481758,2791.7,2791.6,27.6]
[1643735709082,0.90467099,2792.0,2791.8,6.7]
[1643735709283,0.05531129,2792.0,2791.9,31.22148558]
[1643735709480,1.80934198,2792.1,2792.0,6.7]
[1643735709681,1.09282996,2792.1,2792.0,9.50636435]
[1643735709882,1.09282996,2792.1,2792.0,1.43]
[1643735710709,1.09282996,2792.1,2791.8,0.89525]
[1643735710916,0.1789,2792.0,2791.3,0.43]
[1643735711815,0.1789,2792.0,2791.5,0.89559]
[1643735712818,0.1789,2792.0,2791.0,0.96831825]
[1643735712819,1.52105975,2791.9,2791.0,0.8957]
[1643735713015,2.42595832,2792.1,2791.2,1.0]
[1643735713016,0.1791,2791.8,2791.2,1.0]
[1643735713215,0.18814367,2792.0,2791.0,0.14341]
[1643735713419,0.18814367,2792.0,2790.7,1.3]
[1643735713618,0.18814367,2792.0,2790.6,0.13819997]
[1643735713619,0.01252183,2791.8,2790.6,0.13819997]
[1643735713817,0.44237894,2791.7,2790.0,6.76046828]
[1643735714016,0.89599,2791.5,2790.3,4.55953136]
[1643735714253,0.1791,2791.4,2790.3,4.55953136]
[1643735714454,0.3333737,2790.4,2790.2,0.89595]
[1643735714655,0.65813936,2790.8,2790.2,0.89595]
[1643735715059,0.65813936,2790.8,2790.5,0.89293027]
[1643735715258,0.65813936,2790.8,2790.5,0.3]
[1643735715456,0.65813936,2790.8,2790.3,0.5088892]
[1643735715654,0.65813936,2790.8,2790.4,1.0]
[1643735715655,0.44178001,2790.6,2790.4,1.0]
[1643735715856,0.44178001,2790.6,2790.3,0.5088892]
[1643735716060,0.44178001,2790.6,2790.3,0.43]
[1643735716857,0.44178001,2790.6,2790.5,1.7917]
[1643735718512,0.44178001,2790.6,2790.2,0.89598]
[1643735718812,0.44178001,2790.6,2790.0,1.79198]
[1643735719019,0.1791,2790.5,2789.9,0.43]
[1643735719310,0.25,2790.4,2789.5,0.53327838]
[1643735719512,0.1792,2790.3,2789.5,1.42951838]
[1643735719713,0.35936137,2789.8,2789.5,1.42951838]
[1643735720212,0.35936137,2789.8,2789.5,0.89624]
[1643735721019,1.31627872,2790.0,2789.5,0.89624]
[1643735721320,1.31627872,2790.0,2789.6,0.3]
[1643735721515,1.31627872,2790.0,2789.5,0.89624]
[1643735721956,0.37993565,2789.8,2789.5,0.89624]
[1643735722357,1.31627872,2790.0,2789.5,0.89624]
[1643735722560,1.32027872,2790.0,2789.5,0.89624]
[1643735723258,0.42991584,2789.9,2789.5,0.89624]
[1643735723459,0.60911584,2789.9,2789.3,1.0]
[1643735723660,0.60911584,2789.9,2789.1,0.89635]
[1643735723860,0.85911584,2789.9,2789.1,0.89635]
[1643735724461,0.85911584,2789.9,2789.2,0.37327055]
[1643735724863,0.1792,2789.9,2789.2,0.37327055]
[1643735725062,0.65813936,2789.6,2789.3,0.9218344]
[1643735725260,1.31627872,2789.6,2789.3,1.8180544]
[1643735725501,0.004,2790.0,2789.3,1.8180544]
[1643735725502,0.004,2790.0,2789.4,6.7788892]
[1643735725703,0.004,2790.0,2789.5,0.43992385]
[1643735725906,0.004,2790.0,2789.8,0.35017439]
[1643735726106,0.004,2790.0,2789.5,1.5088892]
[1643735726305,0.004,2790.0,2789.5,1.43]
[1643735726509,0.004,2790.0,2789.5,1.32623]
[1643735726908,0.004,2790.0,2789.6,0.3]
[1643735727108,0.004,2790.0,2789.6,0.73]
[1643735727709,0.004,2790.0,2789.8,0.41610643]
[1643735727911,0.004,2790.0,2789.6,0.73]
[1643735728109,0.004,2790.0,2789.6,0.3]
[1643735728513,0.004,2790.0,2789.5,0.89623]
[1643735728712,0.004,2790.0,2789.3,1.0]
[1643735728713,0.1792,2789.9,2789.3,1.0]
[1643735728913,0.1792,2789.9,2789.0,1.79253]
[1643735729115,0.43773209,2789.4,2789.0,1.79253]
[1643735729356,0.68773209,2789.4,2789.1,0.143505]
[1643735729757,0.68773209,2789.4,2788.7,1.4470863]
[1643735729758,0.00837365,2789.3,2788.7,1.4470863]
[1643735729958,0.68773209,2789.4,2788.7,3.5470863]
[1643735730161,0.68773209,2789.4,2788.7,3.93133129]
[1643735730356,0.1792,2789.3,2788.7,3.5470863]
[1643735730756,0.1792,2789.3,2788.7,2.6506363]
[1643735730962,0.1792,2789.3,2788.7,0.5506363]
[1643735731666,0.1792,2789.3,2788.7,0.98589138]
[1643735731860,0.1792,2789.3,2788.7,0.5506363]
[1643735732357,0.1792,2789.3,2788.5,1.0788892]
[1643735732558,0.1792,2789.3,2788.5,0.0788892]
[1643735732760,0.1792,2789.3,2788.1,8.47]
[1643735732761,2.40838362,2789.2,2788.1,8.47]
[1643735733003,0.42425753,2788.6,2788.1,8.89112572]
[1643735733210,0.1792,2789.1,2788.3,0.143549]
[1643735733608,0.1792,2789.1,2788.1,8.89112572]
[1643735733810,0.1792,2789.1,2788.1,1.42112572]
[1643735734413,0.43724967,2788.9,2788.1,1.42112572]
[1643735734611,0.1792,2788.8,2788.1,0.42112572]
[1643735734814,0.1792,2788.8,2788.1,1.42112572]
[1643735735012,0.68724967,2788.9,2788.4,0.75764907]
[1643735735013,0.25,2788.9,2788.4,0.75764907]
[1643735735213,0.1792,2789.1,2788.4,0.75764907]
[1643735735413,0.9006,2789.4,2788.4,0.75764907]
[1643735735414,0.1792,2789.3,2788.4,0.75764907]
[1643735735613,0.1792,2789.3,2788.4,1.13628916]
[1643735735814,0.1792,2789.3,2788.4,0.83628916]
[1643735736015,0.1792,2789.3,2788.4,0.75764907]
[1643735736016,0.32102821,2788.8,2788.4,0.75764907]
[1643735736214,0.1792,2789.3,2788.4,0.43]
[1643735736855,0.1792,2789.3,2788.4,1.32654]
[1643735737649,0.1792,2789.3,2788.7,0.36803684]
[1643735737852,0.004,2789.4,2788.8,0.89643]
[1643735738051,7.61479423,2790.1,2788.9,0.43]
[1643735738052,0.1792,2789.8,2788.9,0.43]
[1643735738254,0.004,2789.3,2788.9,0.43575007]
[1643735738451,0.004,2789.3,2788.9,0.43]
[1643735739052,0.004,2789.3,2789.2,6.9796752]
[1643735739251,0.004,2789.3,2789.2,8.31979898]
[1643735740252,0.004,2789.3,2789.2,8.82843907]
[1643735740508,0.004,2789.3,2789.2,8.74979898]
[1643735743516,0.004,2789.3,2789.2,7.68]
[1643735744119,0.1792,2790.0,2789.3,4.99627]
[1643735744366,1.27683681,2790.7,2789.4,1.43]
[1643735744367,0.1792,2790.5,2789.4,1.43]
[1643735744574,0.1792,2790.6,2789.5,0.00406489]
[1643735744771,0.31805993,2790.5,2789.6,0.43]
[1643735744968,0.31805993,2790.5,2789.7,0.1792]
[1643735745168,0.31805993,2790.5,2789.8,1.13705046]
[1643735745370,0.31805993,2790.5,2789.8,1.32608]
[1643735745965,0.35646861,2790.0,2789.8,1.32608]
[1643735746167,0.1792,2790.8,2789.8,1.32608]
[1643735746769,0.1791,2791.0,2789.9,2.90915002]
[1643735747070,0.3985745,2791.1,2790.6,0.33983541]
[1643735747376,7.9103,2791.7,2790.7,1.11020336]
[1643735747377,0.1791,2791.6,2790.7,1.11020336]
[1643735747570,1.51045802,2791.5,2790.7,1.11020336]
[1643735747769,1.51045802,2791.5,2790.7,3.16287507]
[1643735747999,0.1791,2791.4,2790.7,3.16287507]
[1643735748198,1.10569047,2792.1,2790.8,1.0]
[1643735748199,1.07494,2792.0,2790.8,1.0]
[1643735748401,1.51040868,2791.9,2791.0,0.89575]
[1643735748602,0.44131535,2791.3,2791.0,0.89575]
[1643735748801,0.1791,2791.8,2791.1,0.516]
[1643735749004,1.10569047,2792.1,2791.1,0.516]
[1643735749005,1.51036776,2791.7,2791.1,0.516]
[1643735749205,1.68946776,2791.6,2791.1,0.516]
[1643735749401,1.68946776,2791.6,2790.8,1.0]
[1643735749402,1.51036776,2791.5,2791.2,0.516]
[1643735749606,1.51036776,2791.4,2791.3,0.516]
[1643735749810,1.51036776,2791.4,2791.0,0.516]
[1643735750010,1.68946776,2791.3,2790.7,0.516]
[1643735750210,1.51036776,2791.2,2790.7,0.516]
[1643735750408,1.51036776,2791.1,2790.7,0.516]
[1643735750608,0.1791,2791.6,2790.8,0.68992106]
[1643735750609,1.07505,2791.6,2790.8,0.68992106]
[1643735750808,1.51056142,2791.5,2790.8,0.68992106]
[1643735751011,0.1791,2791.4,2790.7,0.516]
[1643735751209,1.51056142,2791.3,2790.7,0.516]
[1643735751758,0.39466866,2790.9,2790.7,0.516]
[1643735752567,0.39466866,2790.9,2790.4,1.1791]
[1643735753363,0.39466866,2790.9,2790.4,0.1791]
[1643735753564,1.68987182,2790.8,2790.4,0.1791]
[1643735753763,1.51077182,2790.7,2790.4,0.1791]
[1643735753963,0.1791,2790.6,2790.4,0.1791]
[1643735754169,3.81077182,2790.5,2790.4,0.1791]
[1643735754362,3.81077182,2790.5,2790.4,0.12173679]
[1643735754363,1.51077182,2790.5,2790.4,0.12173679]
[1643735754563,1.51077182,2790.6,2790.4,0.12173679]
[1643735754765,0.1791,2790.5,2790.4,0.12173679]
[1643735755066,1.68987182,2790.5,2790.3,0.54525911]
[1643735755265,1.51077182,2790.4,2790.3,0.54525911]
[1643735755897,2.4,2790.4,2790.3,0.54525911]
[1643735756101,4.08987182,2790.4,2790.3,0.54525911]
[1643735756903,1.68987182,2790.4,2790.3,0.54525911]
[1643735759105,2.68987182,2790.4,2789.3,1.68328]
[1643735759364,0.17911,2790.6,2789.3,1.68328]
[1643735759365,1.68997182,2790.3,2789.3,1.68328]
[1643735759562,1.51077182,2790.2,2789.3,1.68328]
[1643735759762,1.68997182,2790.1,2789.3,1.68328]
[1643735760063,1.51077182,2790.0,2789.6,0.33355945]
[1643735760262,0.1792,2790.5,2789.6,1.68328]
[1643735760464,1.51102349,2790.4,2790.0,0.84785186]
[1643735760665,1.51102349,2790.3,2790.0,0.84785186]
[1643735760862,1.51102349,2790.2,2789.7,1.516]
[1643735761063,0.1792,2790.8,2789.7,0.516]
[1643735761364,1.5109751,2790.7,2790.0,2.1210406]
[1643735761568,0.1791,2791.0,2790.1,1.41720806]
[1643735761763,6.61848876,2791.7,2790.1,1.49742933]
[1643735761764,1.51063308,2790.9,2790.1,1.49742933]
[1643735761963,1.51063308,2790.8,2790.1,2.49742933]
[1643735762166,0.1791,2791.4,2790.1,2.49068009]
[1643735762365,1.51063454,2791.3,2790.1,2.49068009]
[1643735762563,0.36100894,2790.8,2790.4,0.78546986]
[1643735762764,0.36100894,2790.8,2790.5,0.516]
[1643735763208,0.1791,2791.4,2790.7,1.68328]
[1643735763407,2.36395858,2791.4,2790.8,0.516]
[1643735763608,1.51063897,2791.3,2790.8,0.516]
[1643735763806,0.1791,2791.2,2790.7,1.68328]
[1643735764007,1.51061912,2791.1,2790.7,1.68328]
[1643735764408,0.33852444,2791.0,2790.7,1.68328]
[1643735764609,1.51061912,2790.9,2790.7,1.68328]
[1643735765812,1.51061912,2790.9,2790.6,0.573431]
[1643735767667,1.51061912,2790.9,2790.6,0.143431]
[1643735767868,1.68971912,2790.8,2790.6,0.143431]
[1643735768068,1.51061912,2790.7,2790.6,0.143431]
[1643735768269,1.68971912,2790.7,2790.6,0.143431]
[1643735769273,0.286862,2790.0,2789.6,1.1634]
[1643735769471,0.85332961,2790.9,2789.4,2.11328]
[1643735769472,0.1791,2790.6,2789.4,2.11328]